[Event "15. ročník Dobrovický rapid Tereos TTD a.s."]
[Site "Dobrovice, Czech Republic"]
[Date "2020.02.29"]
[Round "4.6"]
[White "Koper Stefan"]
[Black "Sorm Daniel"]
[Result "0-1"]
[TimeControl "15m + 3s / tah"]
[WhiteElo "1915"]
[BlackElo "2310"]

1. d4 {[%clk 00:15:04]} {[%emt 00:00:01]} d5 {[%clk 00:15:03]} {[%emt
00:00:03]} 2. c4 {[%clk 00:15:06]} {[%emt 00:00:02]} e6 {[%clk 00:15:02]}
{[%emt 00:00:04]} 3. cxd5 {[%clk 00:15:07]} {[%emt 00:00:02]} exd5 {[%clk
00:15:03]} {[%emt 00:00:02]} 4. Nc3 {[%clk 00:15:09]} {[%emt 00:00:02]} c6
{[%clk 00:15:00]} {[%emt 00:00:06]} 5. Nf3 {[%clk 00:15:10]} {[%emt 00:00:01]}
Bf5 {[%clk 00:14:59]} {[%emt 00:00:04]} 6. Bf4 {[%clk 00:15:10]} {[%emt
00:00:03]} Qb6 {[%clk 00:14:51]} {[%emt 00:00:11]} 7. Bc1 {[%clk 00:14:11]}
{[%emt 00:01:02]} Nf6 {[%clk 00:14:24]} {[%emt 00:00:31]} 8. e3 {[%clk
00:14:12]} {[%emt 00:00:02]} Nbd7 {[%clk 00:13:28]} {[%emt 00:00:58]} 9. Bd3
{[%clk 00:14:13]} {[%emt 00:00:03]} Bg4 {[%clk 00:13:09]} {[%emt 00:00:21]} 10.
h3 {[%clk 00:14:07]} {[%emt 00:00:09]} Bh5 {[%clk 00:13:11]} {[%emt 00:00:01]}
11. Be2 {[%clk 00:13:59]} {[%emt 00:00:11]} Bd6 {[%clk 00:13:10]} {[%emt
00:00:04]} 12. O-O {[%clk 00:13:50]} {[%emt 00:00:12]} O-O {[%clk 00:12:55]}
{[%emt 00:00:18]} 13. a3 {[%clk 00:12:47]} {[%emt 00:01:06]} Rae8 {[%clk
00:11:50]} {[%emt 00:01:07]} 14. b4 {[%clk 00:12:29]} {[%emt 00:00:21]} Bb8
{[%clk 00:11:43]} {[%emt 00:00:10]} 15. Ne1 {[%clk 00:11:55]} {[%emt 00:00:36]}
Qc7 {[%clk 00:11:26]} {[%emt 00:00:20]} 16. g3 {[%clk 00:11:36]} {[%emt
00:00:22]} Bg6 {[%clk 00:11:07]} {[%emt 00:00:22]} 17. Bf3 {[%clk 00:11:01]}
{[%emt 00:00:38]} Ne4 {[%clk 00:10:20]} {[%emt 00:00:51]} 18. Nxe4 {[%clk
00:10:53]} {[%emt 00:00:11]} dxe4 {[%clk 00:10:12]} {[%emt 00:00:11]} 19. Bg2
{[%clk 00:10:32]} {[%emt 00:00:24]} h5 {[%clk 00:09:58]} {[%emt 00:00:18]} 20.
h4 {[%clk 00:10:02]} {[%emt 00:00:33]} Nf6 {[%clk 00:09:51]} {[%emt 00:00:10]}
21. Bh3 {[%clk 00:09:23]} {[%emt 00:00:41]} Nd5 {[%clk 00:08:36]} {[%emt
00:01:18]} 22. Ng2 {[%clk 00:08:53]} {[%emt 00:00:33]} Qe7 {[%clk 00:07:15]}
{[%emt 00:01:23]} 23. Bd2 {[%clk 00:08:01]} {[%emt 00:00:55]} Qf6 {[%clk
00:07:11]} {[%emt 00:00:08]} 24. Qe2 {[%clk 00:06:50]} {[%emt 00:01:14]} Bf5
{[%clk 00:07:05]} {[%emt 00:00:09]} 25. Bxf5 {[%clk 00:06:40]} {[%emt
00:00:13]} Qxf5 {[%clk 00:07:07]} {[%emt 00:00:01]} 26. Kh2 {[%clk 00:06:00]}
{[%emt 00:00:43]} Nf6 {[%clk 00:06:25]} {[%emt 00:00:46]} 27. Nf4 {[%clk
00:05:26]} {[%emt 00:00:37]} Ng4+ {[%clk 00:05:51]} {[%emt 00:00:37]} 28. Kg2
{[%clk 00:05:18]} {[%emt 00:00:11]} f6 {[%clk 00:05:27]} {[%emt 00:00:27]} 29.
Rh1 {[%clk 00:04:42]} {[%emt 00:00:39]} Rf7 {[%clk 00:05:22]} {[%emt 00:00:09]}
30. a4 {[%clk 00:04:22]} {[%emt 00:00:22]} Rfe7 {[%clk 00:05:20]} {[%emt
00:00:05]} 31. Ra3 {[%clk 00:03:45]} {[%emt 00:00:40]} Bd6 {[%clk 00:04:59]}
{[%emt 00:00:24]} 32. Rb3 {[%clk 00:03:46]} {[%emt 00:00:02]} Kh7 {[%clk
00:04:38]} {[%emt 00:00:25]} 33. b5 {[%clk 00:03:41]} {[%emt 00:00:09]} c5
{[%clk 00:04:37]} {[%emt 00:00:04]} 34. dxc5 {[%clk 00:03:17]} {[%emt
00:00:26]} Bxc5 {[%clk 00:04:38]} {[%emt 00:00:03]} 35. Bb4 {[%clk 00:03:02]}
{[%emt 00:00:18]} Rd7 {[%clk 00:03:45]} {[%emt 00:00:57]} 36. Bxc5 {[%clk
00:02:49]} {[%emt 00:00:15]} Qxc5 {[%clk 00:03:47]} {[%emt 00:00:01]} 37. Rb2
{[%clk 00:02:18]} {[%emt 00:00:34]} Rc8 {[%clk 00:02:45]} {[%emt 00:01:05]} 38.
a5 {[%clk 00:01:52]} {[%emt 00:00:29]} g6 {[%clk 00:02:31]} {[%emt 00:00:17]}
39. a6 {[%clk 00:01:28]} {[%emt 00:00:27]} b6 {[%clk 00:02:27]} {[%emt
00:00:07]} 40. Ne6 {[%clk 00:00:57]} {[%emt 00:00:34]} Qd5 {[%clk 00:02:00]}
{[%emt 00:00:30]} 41. Nd4 {[%clk 00:00:56]} {[%emt 00:00:04]} Ne5 {[%clk
00:01:52]} {[%emt 00:00:11]} 42. Rc2 {[%clk 00:00:41]} {[%emt 00:00:18]} Rdc7
{[%clk 00:01:44]} {[%emt 00:00:11]} 43. Rhc1 {[%clk 00:00:43]} {[%emt
00:00:01]} Rc5 {[%clk 00:01:30]} {[%emt 00:00:17]} 44. Nc6 {[%clk 00:00:26]}
{[%emt 00:00:19]} Nxc6 {[%clk 00:01:17]} {[%emt 00:00:16]} 45. bxc6 {[%clk
00:00:28]} {[%emt 00:00:02]} R8xc6 {[%clk 00:01:11]} {[%emt 00:00:10]} 46. Rd2
{[%clk 00:00:24]} {[%emt 00:00:06]} Qf5 {[%clk 00:00:54]} {[%emt 00:00:19]} 47.
Rcd1 {[%clk 00:00:26]} Rc7 {[%clk 00:00:53]} {[%emt 00:00:05]} 48. Rd8 {[%clk
00:00:21]} {[%emt 00:00:08]} Rc2 {[%clk 00:00:46]} {[%emt 00:00:10]} 49. R1d2
{[%clk 00:00:22]} {[%emt 00:00:02]} Rxd2 {[%clk 00:00:18]} {[%emt 00:00:30]} 50.
Qxd2 {[%clk 00:00:21]} {[%emt 00:00:04]} g5 {[%clk 00:00:11]} {[%emt 00:00:11]}
51. hxg5 {[%clk 00:00:15]} {[%emt 00:00:09]} Qxg5 {[%clk 00:00:05]} {[%emt
00:00:09]} 52. Rd7+ {[%emt 00:00:24]} 0-1

[Event "15. ročník Dobrovický rapid Tereos TTD a.s."]
[Site "Dobrovice, Czech Republic"]
[Date "2020.02.29"]
[Round "4.7"]
[White "Kaderabek Jiri"]
[Black "Kykal Zbynek"]
[Result "1/2-1/2"]
[TimeControl "15m + 3s / tah"]
[WhiteElo "2105"]
[BlackElo "1827"]

1. e4 {[%clk 00:15:03]} {[%emt 00:00:02]} c6 {[%clk 00:15:04]} {[%emt
00:00:03]} 2. d4 {[%clk 00:15:04]} {[%emt 00:00:02]} d5 {[%clk 00:15:06]} 3. e5
{[%clk 00:15:06]} Bf5 {[%clk 00:15:07]} {[%emt 00:00:02]} 4. Nf3 {[%clk
00:14:55]} {[%emt 00:00:14]} e6 {[%clk 00:15:05]} {[%emt 00:00:05]} 5. Be3
{[%clk 00:14:47]} {[%emt 00:00:11]} Ne7 {[%clk 00:14:21]} {[%emt 00:00:47]} 6.
Be2 {[%clk 00:14:34]} {[%emt 00:00:16]} Bg6 {[%clk 00:14:16]} {[%emt 00:00:09]}
7. O-O {[%clk 00:14:22]} {[%emt 00:00:14]} Nf5 {[%clk 00:14:12]} {[%emt
00:00:07]} 8. Nbd2 {[%clk 00:14:16]} {[%emt 00:00:08]} Be7 {[%clk 00:13:57]}
{[%emt 00:00:19]} 9. c4 {[%clk 00:14:13]} {[%emt 00:00:05]} O-O {[%clk
00:13:52]} {[%emt 00:00:08]} 10. b3 {[%clk 00:14:05]} {[%emt 00:00:11]} Nd7
{[%clk 00:13:45]} {[%emt 00:00:10]} 11. h3 {[%clk 00:13:42]} {[%emt 00:00:26]}
Ba3 {[%clk 00:12:55]} {[%emt 00:00:53]} 12. Bg5 {[%clk 00:13:06]} {[%emt
00:00:40]} Qa5 {[%clk 00:12:37]} {[%emt 00:00:20]} 13. g4 {[%clk 00:12:23]}
{[%emt 00:00:46]} Nxd4 {[%clk 00:10:58]} {[%emt 00:01:43]} 14. Nxd4 {[%clk
00:12:21]} {[%emt 00:00:05]} Bb2 {[%clk 00:10:59]} {[%emt 00:00:01]} 15. N2f3
{[%clk 00:12:17]} {[%emt 00:00:08]} c5 {[%clk 00:10:27]} {[%emt 00:00:35]} 16.
Nb5 {[%clk 00:11:51]} {[%emt 00:00:29]} Nxe5 {[%clk 00:10:18]} {[%emt
00:00:11]} 17. Nxe5 {[%clk 00:10:34]} {[%emt 00:01:20]} Bxe5 {[%clk 00:10:18]}
{[%emt 00:00:03]} 18. Bd2 {[%clk 00:10:36]} {[%emt 00:00:02]} Qd8 {[%clk
00:09:41]} {[%emt 00:00:40]} 19. Bc3 {[%clk 00:10:17]} {[%emt 00:00:22]} d4
{[%clk 00:09:16]} {[%emt 00:00:28]} 20. Bb2 {[%clk 00:10:16]} {[%emt 00:00:04]}
a6 {[%clk 00:09:06]} {[%emt 00:00:14]} 21. Na3 {[%clk 00:10:16]} {[%emt
00:00:02]} Qg5 {[%clk 00:09:01]} {[%emt 00:00:08]} 22. f4 {[%clk 00:08:28]}
{[%emt 00:01:51]} Qh4 {[%clk 00:07:53]} {[%emt 00:01:10]} 23. Rf3 {[%clk
00:08:19]} {[%emt 00:00:12]} Bc7 {[%clk 00:07:34]} {[%emt 00:00:22]} 24. Bd3
{[%clk 00:07:44]} {[%emt 00:00:38]} f5 {[%clk 00:07:22]} {[%emt 00:00:15]} 25.
Qe1 {[%clk 00:06:51]} {[%emt 00:00:56]} Qf6 {[%clk 00:06:32]} {[%emt 00:00:52]}
26. g5 {[%clk 00:06:39]} {[%emt 00:00:16]} Qe7 {[%clk 00:05:55]} {[%emt
00:00:38]} 27. Nc2 {[%clk 00:05:56]} {[%emt 00:00:47]} Bh5 {[%clk 00:05:29]}
{[%emt 00:00:30]} 28. Rf2 {[%clk 00:05:46]} {[%emt 00:00:13]} Rae8 {[%clk
00:04:40]} {[%emt 00:00:52]} 29. Be2 {[%clk 00:05:42]} {[%emt 00:00:08]} Bg6
{[%clk 00:04:42]} {[%emt 00:00:02]} 30. Bf3 {[%clk 00:05:30]} {[%emt 00:00:14]}
Bd6 {[%clk 00:04:40]} {[%emt 00:00:05]} 31. Nxd4 {[%clk 00:04:44]} {[%emt
00:00:49]} cxd4 {[%clk 00:04:28]} {[%emt 00:00:15]} 32. Bxd4 {[%clk 00:04:45]}
{[%emt 00:00:02]} Bxf4 {[%emt 00:00:39]} 1/2-1/2

[Event "15. ročník Dobrovický rapid Tereos TTD a.s."]
[Site "Dobrovice, Czech Republic"]
[Date "2020.02.29"]
[Round "4.8"]
[White "Divis Jaroslav"]
[Black "Dubnicka Augustin"]
[Result "1-0"]
[TimeControl "15m + 3s / tah"]
[WhiteElo "2029"]
[BlackElo "1765"]

1. e4 {[%clk 00:15:04]} c5 {[%clk 00:15:02]} {[%emt 00:00:04]} 2. Nf3 {[%clk
00:15:06]} {[%emt 00:00:02]} Nc6 {[%clk 00:15:03]} {[%emt 00:00:02]} 3. d4
{[%clk 00:15:07]} {[%emt 00:00:02]} cxd4 {[%clk 00:15:03]} {[%emt 00:00:02]} 4.
Nxd4 {[%clk 00:15:08]} {[%emt 00:00:02]} d6 {[%clk 00:15:06]} {[%emt 00:00:01]}
5. Nc3 {[%clk 00:14:46]} {[%emt 00:00:25]} g6 {[%clk 00:15:01]} {[%emt
00:00:08]} 6. Bc4 {[%clk 00:14:21]} {[%emt 00:00:29]} Bg7 {[%clk 00:14:55]}
{[%emt 00:00:09]} 7. Be3 {[%clk 00:14:12]} {[%emt 00:00:11]} Nf6 {[%clk
00:14:46]} {[%emt 00:00:13]} 8. f3 {[%clk 00:13:57]} {[%emt 00:00:18]} O-O
{[%clk 00:13:38]} {[%emt 00:01:10]} 9. Qd2 {[%clk 00:13:55]} {[%emt 00:00:05]}
Nxd4 {[%clk 00:13:10]} {[%emt 00:00:32]} 10. Bxd4 {[%clk 00:13:49]} {[%emt
00:00:09]} a6 {[%clk 00:12:55]} {[%emt 00:00:17]} 11. O-O-O {[%clk 00:13:17]}
{[%emt 00:00:36]} Qc7 {[%clk 00:11:49]} {[%emt 00:01:09]} 12. Bb3 {[%clk
00:13:00]} {[%emt 00:00:20]} b5 {[%clk 00:11:37]} {[%emt 00:00:15]} 13. g4
{[%clk 00:12:47]} {[%emt 00:00:16]} Be6 {[%clk 00:10:20]} {[%emt 00:01:20]} 14.
Kb1 {[%clk 00:11:15]} {[%emt 00:01:35]} Bxb3 {[%clk 00:10:03]} {[%emt
00:00:20]} 15. cxb3 {[%clk 00:11:13]} {[%emt 00:00:05]} b4 {[%clk 00:08:12]}
{[%emt 00:01:53]} 16. Bxf6 {[%clk 00:09:17]} {[%emt 00:02:00]} bxc3 {[%clk
00:05:42]} {[%emt 00:02:32]} 17. Bxc3 {[%clk 00:09:18]} {[%emt 00:00:02]} Rac8
{[%clk 00:05:27]} {[%emt 00:00:18]} 18. Bxg7 {[%clk 00:08:28]} {[%emt
00:00:54]} Kxg7 {[%clk 00:05:29]} {[%emt 00:00:01]} 19. h4 {[%clk 00:08:29]} h6
{[%clk 00:05:12]} {[%emt 00:00:21]} 20. h5 {[%clk 00:07:44]} {[%emt 00:00:48]}
g5 {[%clk 00:05:10]} {[%emt 00:00:05]} 21. Qd3 {[%clk 00:06:24]} {[%emt
00:01:23]} Qc5 {[%clk 00:04:20]} {[%emt 00:00:53]} 22. Rc1 {[%clk 00:04:47]}
{[%emt 00:01:40]} Qb5 {[%clk 00:04:18]} {[%emt 00:00:05]} 23. Qxb5 {[%clk
00:03:51]} {[%emt 00:00:58]} axb5 {[%clk 00:04:20]} {[%emt 00:00:01]} 24. Rxc8
Rxc8 {[%clk 00:04:22]} 25. Rc1 {[%clk 00:03:42]} {[%emt 00:00:01]} Rb8 {[%clk
00:04:24]} 26. Rc7 {[%clk 00:03:44]} {[%emt 00:00:01]} Kf6 {[%clk 00:04:26]} 27.
a4 {[%clk 00:03:20]} {[%emt 00:00:27]} b4 {[%clk 00:04:20]} {[%emt 00:00:09]}
28. Kc2 {[%clk 00:03:17]} {[%emt 00:00:07]} e5 {[%clk 00:02:24]} {[%emt
00:01:59]} 29. Kd3 {[%clk 00:03:15]} {[%emt 00:00:05]} Ke6 {[%clk 00:01:49]}
{[%emt 00:00:38]} 30. Kc4 {[%clk 00:03:11]} {[%emt 00:00:08]} Rb6 {[%clk
00:00:59]} {[%emt 00:00:52]} 31. a5 {[%clk 00:03:08]} {[%emt 00:00:06]} Rb8
{[%clk 00:00:50]} {[%emt 00:00:12]} 32. a6 {[%clk 00:03:08]} {[%emt 00:00:02]}
Rb6 {[%clk 00:00:18]} {[%emt 00:00:36]} 33. a7 {[%clk 00:03:06]} {[%emt
00:00:05]} Ra6 {[%clk 00:00:20]} {[%emt 00:00:01]} 34. Kxb4 {[%clk 00:03:04]}
{[%emt 00:00:05]} d5 {[%clk 00:00:10]} {[%emt 00:00:12]} 35. Rc6+ {[%clk
00:03:00]} {[%emt 00:00:06]} 1-0

[Event "15. ročník Dobrovický rapid Tereos TTD a.s."]
[Site "Dobrovice, Czech Republic"]
[Date "2020.02.29"]
[Round "4.9"]
[White "Janicek Jindrich"]
[Black "Danek Pavel"]
[Result "1/2-1/2"]
[TimeControl "15m + 3s / tah"]
[WhiteElo "2022"]
[BlackElo "1844"]

1. Nf3 {[%clk 00:14:47]} {[%emt 00:00:18]} e6 {[%clk 00:15:04]} {[%emt
00:00:03]} 2. c4 {[%clk 00:14:29]} {[%emt 00:00:20]} d5 {[%clk 00:14:56]}
{[%emt 00:00:11]} 3. d4 {[%clk 00:14:30]} {[%emt 00:00:02]} c6 {[%clk
00:14:58]} {[%emt 00:00:02]} 4. Nc3 {[%clk 00:14:06]} {[%emt 00:00:26]} f5
{[%clk 00:14:58]} {[%emt 00:00:03]} 5. Bf4 {[%clk 00:13:55]} {[%emt 00:00:14]}
Nf6 {[%clk 00:14:54]} {[%emt 00:00:08]} 6. e3 {[%clk 00:13:55]} {[%emt
00:00:03]} Be7 {[%clk 00:14:53]} {[%emt 00:00:04]} 7. Ne5 {[%clk 00:13:44]}
{[%emt 00:00:14]} O-O {[%clk 00:14:49]} {[%emt 00:00:07]} 8. Bd3 {[%clk
00:13:30]} {[%emt 00:00:16]} Nbd7 {[%clk 00:14:29]} {[%emt 00:00:23]} 9. Qc2
{[%clk 00:12:54]} {[%emt 00:00:39]} Nxe5 {[%clk 00:14:06]} {[%emt 00:00:27]} 10.
Bxe5 {[%clk 00:12:49]} {[%emt 00:00:08]} Ne4 {[%clk 00:14:03]} {[%emt
00:00:06]} 11. O-O {[%clk 00:11:27]} {[%emt 00:01:24]} Bd6 {[%clk 00:12:57]}
{[%emt 00:01:09]} 12. Bxd6 {[%clk 00:10:08]} {[%emt 00:01:22]} Qxd6 {[%clk
00:12:36]} {[%emt 00:00:24]} 13. c5 {[%clk 00:09:49]} {[%emt 00:00:22]} Qe7
{[%clk 00:11:50]} {[%emt 00:00:49]} 14. f4 {[%clk 00:09:50]} {[%emt 00:00:03]}
Rf6 {[%clk 00:11:02]} {[%emt 00:00:51]} 15. Nxe4 {[%clk 00:08:02]} {[%emt
00:01:51]} fxe4 {[%clk 00:10:55]} {[%emt 00:00:10]} 16. Be2 {[%clk 00:07:59]}
{[%emt 00:00:06]} Bd7 {[%clk 00:10:39]} {[%emt 00:00:19]} 17. b4 {[%clk
00:07:37]} {[%emt 00:00:25]} a6 {[%clk 00:10:36]} {[%emt 00:00:05]} 18. a4
{[%clk 00:07:32]} {[%emt 00:00:07]} Raf8 {[%clk 00:10:02]} {[%emt 00:00:37]} 19.
Qb3 {[%clk 00:06:23]} {[%emt 00:01:13]} g5 {[%clk 00:09:11]} {[%emt 00:00:55]}
20. g3 {[%clk 00:06:05]} {[%emt 00:00:22]} gxf4 {[%emt 00:00:25]} 21. exf4
{[%emt 00:00:02]} Qg7 {[%clk 00:08:19]} {[%emt 00:00:30]} 22. Kh1 {[%clk
00:05:48]} {[%emt 00:00:22]} Rg6 {[%clk 00:07:22]} {[%emt 00:01:00]} 23. Qe3
{[%clk 00:05:43]} {[%emt 00:00:08]} Kh8 {[%clk 00:05:52]} {[%emt 00:01:33]} 24.
b5 {[%clk 00:05:21]} {[%emt 00:00:25]} axb5 {[%clk 00:05:39]} {[%emt 00:00:16]}
25. axb5 {[%clk 00:05:22]} {[%emt 00:00:02]} Qh6 {[%clk 00:05:07]} {[%emt
00:00:36]} 26. Rg1 {[%clk 00:04:34]} {[%emt 00:00:51]} Qh3 {[%clk 00:04:11]}
{[%emt 00:00:59]} 27. Bf1 {[%clk 00:04:12]} {[%emt 00:00:24]} Qh6 {[%clk
00:04:13]} 28. Be2 {[%clk 00:04:06]} {[%emt 00:00:09]} Qh3 {[%clk 00:04:15]} 29.
Bf1 {[%clk 00:04:05]} {[%emt 00:00:05]} 1/2-1/2

[Event "15. ročník Dobrovický rapid Tereos TTD a.s."]
[Site "Dobrovice, Czech Republic"]
[Date "2020.02.29"]
[Round "4.10"]
[White "Zemlicka Vit"]
[Black "Janacek Jaroslav"]
[Result "1/2-1/2"]
[TimeControl "15m + 3s / tah"]
[WhiteElo "1915"]
[BlackElo "1979"]

1. e4 {[%clk 00:15:03]} {[%emt 00:00:02]} d6 {[%clk 00:15:05]} {[%emt
00:00:01]} 2. d4 {[%clk 00:15:05]} {[%emt 00:00:02]} Nf6 {[%clk 00:15:05]}
{[%emt 00:00:03]} 3. Nc3 {[%clk 00:15:06]} {[%emt 00:00:02]} e5 {[%clk
00:15:06]} {[%emt 00:00:02]} 4. Nge2 {[%clk 00:15:05]} {[%emt 00:00:03]} Be7
{[%clk 00:14:37]} {[%emt 00:00:32]} 5. g3 {[%clk 00:15:07]} {[%emt 00:00:02]}
c6 {[%clk 00:14:24]} {[%emt 00:00:16]} 6. a4 {[%clk 00:15:08]} {[%emt
00:00:02]} O-O {[%clk 00:14:22]} {[%emt 00:00:05]} 7. Bg2 {[%clk 00:15:08]}
{[%emt 00:00:03]} Na6 {[%clk 00:14:01]} {[%emt 00:00:24]} 8. O-O {[%clk
00:14:54]} {[%emt 00:00:16]} Nb4 {[%clk 00:14:03]} {[%emt 00:00:01]} 9. h3
{[%clk 00:13:55]} {[%emt 00:01:03]} a5 {[%clk 00:14:01]} {[%emt 00:00:05]} 10.
Be3 {[%clk 00:13:43]} {[%emt 00:00:15]} Ne8 {[%clk 00:13:49]} {[%emt 00:00:15]}
11. g4 {[%clk 00:12:03]} {[%emt 00:01:42]} g6 {[%clk 00:13:16]} {[%emt
00:00:37]} 12. Ng3 {[%clk 00:11:42]} {[%emt 00:00:23]} Ng7 {[%clk 00:13:13]}
{[%emt 00:00:07]} 13. f4 {[%clk 00:08:57]} {[%emt 00:02:47]} exf4 {[%clk
00:12:50]} {[%emt 00:00:26]} 14. Bxf4 {[%clk 00:08:54]} {[%emt 00:00:06]} Bg5
{[%clk 00:12:13]} {[%emt 00:00:41]} 15. Nce2 {[%clk 00:08:45]} {[%emt
00:00:10]} Ne6 {[%clk 00:11:28]} {[%emt 00:00:47]} 16. Bxg5 {[%clk 00:08:17]}
{[%emt 00:00:33]} Qxg5 {[%clk 00:11:27]} {[%emt 00:00:04]} 17. c3 {[%clk
00:07:22]} {[%emt 00:00:58]} Qe3+ {[%clk 00:11:01]} {[%emt 00:00:29]} 18. Kh2
{[%clk 00:07:23]} {[%emt 00:00:02]} Na6 {[%clk 00:10:48]} {[%emt 00:00:17]} 19.
Rf3 {[%clk 00:06:50]} {[%emt 00:00:36]} Qh6 {[%clk 00:10:18]} {[%emt 00:00:34]}
20. Qc1 {[%clk 00:05:44]} {[%emt 00:01:08]} Qg7 {[%clk 00:09:35]} {[%emt
00:00:46]} 21. Qd2 {[%clk 00:05:18]} {[%emt 00:00:30]} Nac7 {[%clk 00:09:34]}
{[%emt 00:00:04]} 22. Nf5 {[%clk 00:04:22]} {[%emt 00:00:59]} gxf5 {[%clk
00:09:09]} {[%emt 00:00:28]} 23. gxf5 {[%clk 00:04:23]} {[%emt 00:00:02]} Kh8
{[%clk 00:09:04]} {[%emt 00:00:08]} 24. fxe6 {[%clk 00:03:52]} {[%emt
00:00:34]} Nxe6 {[%clk 00:07:53]} {[%emt 00:01:13]} 25. Raf1 {[%clk 00:03:48]}
{[%emt 00:00:07]} f6 {[%clk 00:07:38]} {[%emt 00:00:19]} 26. Nf4 {[%clk
00:03:30]} {[%emt 00:00:21]} Ng5 {[%clk 00:07:20]} {[%emt 00:00:21]} 27. Rg3
{[%clk 00:03:29]} {[%emt 00:00:03]} Qh6 {[%clk 00:07:21]} {[%emt 00:00:03]} 28.
Qe2 {[%clk 00:03:06]} {[%emt 00:00:25]} Bd7 {[%clk 00:07:14]} {[%emt 00:00:11]}
29. Qh5 {[%clk 00:02:58]} {[%emt 00:00:10]} Qg7 {[%clk 00:06:26]} {[%emt
00:00:52]} 30. h4 {[%clk 00:02:47]} {[%emt 00:00:14]} Be8 {[%clk 00:06:28]}
{[%emt 00:00:02]} 31. Qe2 {[%clk 00:02:47]} {[%emt 00:00:02]} Qh6 {[%clk
00:06:26]} {[%emt 00:00:06]} 32. Qg4 {[%clk 00:02:36]} {[%emt 00:00:13]} Rd8
{[%clk 00:04:20]} {[%emt 00:02:10]} 33. Kg1 {[%clk 00:02:37]} {[%emt 00:00:02]}
Bd7 {[%clk 00:04:20]} {[%emt 00:00:02]} 34. hxg5 {[%clk 00:02:20]} {[%emt
00:00:20]} fxg5 {[%clk 00:03:54]} {[%emt 00:00:30]} 35. Qxg5 {[%clk 00:02:16]}
{[%emt 00:00:07]} Qxg5 {[%clk 00:03:27]} {[%emt 00:00:30]} 36. Rxg5 {[%clk
00:02:17]} {[%emt 00:00:01]} Rf6 {[%clk 00:02:05]} {[%emt 00:01:25]} 37. Nh5
{[%clk 00:01:53]} {[%emt 00:00:26]} Rh6 {[%clk 00:02:07]} {[%emt 00:00:02]} 38.
Rf6 {[%clk 00:01:32]} {[%emt 00:00:23]} Rxf6 {[%clk 00:01:45]} {[%emt
00:00:26]} 39. Nxf6 {[%clk 00:01:34]} {[%emt 00:00:01]} h6 {[%clk 00:01:33]}
{[%emt 00:00:15]} 40. Rxa5 {[%clk 00:01:04]} {[%emt 00:00:33]} Be6 {[%clk
00:01:13]} {[%emt 00:00:22]} 41. Nh5 {[%clk 00:00:48]} {[%emt 00:00:19]} Rg8
{[%clk 00:01:00]} {[%emt 00:00:17]} 42. Kf2 {[%clk 00:00:40]} {[%emt 00:00:10]}
Rf8+ {[%clk 00:01:02]} {[%emt 00:00:01]} 43. Ke3 {[%clk 00:00:41]} {[%emt
00:00:02]} Rg8 {[%clk 00:00:58]} {[%emt 00:00:08]} 44. Nf4 {[%clk 00:00:37]}
{[%emt 00:00:07]} Bc8 {[%clk 00:00:54]} {[%emt 00:00:07]} 45. Rh5 {[%clk
00:00:32]} {[%emt 00:00:07]} Kh7 {[%clk 00:00:52]} {[%emt 00:00:06]} 46. Rh4
{[%clk 00:00:25]} {[%emt 00:00:10]} Rg3+ {[%clk 00:00:51]} {[%emt 00:00:05]} 47.
Kf2 {[%clk 00:00:27]} Rg5 {[%clk 00:00:44]} {[%emt 00:00:10]} 48. Nd3 {[%clk
00:00:27]} {[%emt 00:00:03]} b5 {[%emt 00:00:07]} 49. axb5 {[%clk 00:00:27]}
{[%emt 00:00:02]} Rxb5 {[%clk 00:00:42]} 50. Rf4 {[%clk 00:00:28]} {[%emt
00:00:02]} Kg6 {[%clk 00:00:41]} {[%emt 00:00:05]} 51. e5 {[%clk 00:00:28]}
{[%emt 00:00:03]} dxe5 {[%clk 00:00:28]} {[%emt 00:00:16]} 52. Nxe5+ {[%clk
00:00:30]} {[%emt 00:00:01]} Kg5 {[%clk 00:00:16]} {[%emt 00:00:16]} 53. Rf8
{[%clk 00:00:31]} {[%emt 00:00:01]} Rxb2+ {[%clk 00:00:17]} {[%emt 00:00:02]}
54. Kg3 {[%clk 00:00:32]} {[%emt 00:00:02]} Bf5 {[%clk 00:00:17]} {[%emt
00:00:03]} 55. Nf3+ {[%clk 00:00:29]} {[%emt 00:00:05]} Kg6 {[%clk 00:00:15]}
{[%emt 00:00:06]} 56. Nh4+ {[%clk 00:00:31]} {[%emt 00:00:01]} Kg7 {[%clk
00:00:14]} {[%emt 00:00:04]} 57. Rxf5 {[%clk 00:00:33]} Rc2 {[%clk 00:00:16]}
{[%emt 00:00:02]} 58. Rf3 {[%clk 00:00:33]} {[%emt 00:00:02]} h5 {[%clk
00:00:16]} {[%emt 00:00:02]} 59. Nf5+ {[%clk 00:00:35]} {[%emt 00:00:01]} Kg6
{[%clk 00:00:17]} {[%emt 00:00:02]} 60. Ne3 {[%clk 00:00:37]} {[%emt 00:00:01]}
Re2 {[%clk 00:00:18]} {[%emt 00:00:03]} 61. Nc4 {[%clk 00:00:38]} {[%emt
00:00:02]} h4+ {[%clk 00:00:17]} {[%emt 00:00:03]} 62. Kh3 {[%clk 00:00:37]}
{[%emt 00:00:04]} Rc2 {[%clk 00:00:17]} {[%emt 00:00:04]} 63. Ne5+ {[%clk
00:00:38]} {[%emt 00:00:01]} Kg7 {[%clk 00:00:18]} {[%emt 00:00:01]} 64. Nxc6
{[%clk 00:00:39]} {[%emt 00:00:02]} Kg8 {[%clk 00:00:18]} {[%emt 00:00:03]} 65.
Ne7+ {[%clk 00:00:40]} {[%emt 00:00:02]} Kg7 {[%clk 00:00:20]} {[%emt
00:00:02]} 66. Nf5+ {[%clk 00:00:42]} Kh6 {[%clk 00:00:17]} {[%emt 00:00:07]}
67. Nxh4 {[%clk 00:00:44]} Kg5 {[%clk 00:00:18]} {[%emt 00:00:02]} 68. Nf5
{[%clk 00:00:44]} {[%emt 00:00:02]} Kg6 {[%clk 00:00:12]} {[%emt 00:00:10]} 69.
Nd6 {[%clk 00:00:44]} {[%emt 00:00:03]} Kg5 {[%clk 00:00:11]} {[%emt 00:00:04]}
70. c4 {[%clk 00:00:45]} {[%emt 00:00:02]} Rd2 {[%clk 00:00:05]} {[%emt
00:00:08]} 71. d5 {[%clk 00:00:47]} {[%emt 00:00:01]} Kg6 {[%clk 00:00:07]}
{[%emt 00:00:01]} 72. Ne4 {[%clk 00:00:48]} {[%emt 00:00:02]} Rd4 {[%clk
00:00:07]} {[%emt 00:00:03]} 73. Nd6 {[%clk 00:00:41]} {[%emt 00:00:09]} Kg5
{[%clk 00:00:00]} {[%emt 00:00:07]} 74. Rf5+ {[%clk 00:00:36]} {[%emt
00:00:05]} Kg6 {[%clk 00:00:00]} {[%emt 00:00:01]} 75. Re5 {[%emt 00:00:06]}
1/2-1/2